Cogmind - Beta 11.1 @@@ ROGUE MODE // 2022.09.09 @ 20:24:34 Player: Okkudo Result: Destroyed by G-47 Trooper with Particle Gun Performance ------------- Evolutions (1) 500 Regions Visited (2) 400 Robots Destroyed (14) 70 Value Destroyed (421) 421 Prototype IDs (2) 40 Alien Tech Used (0) 0 Bonus (0) 0 TOTAL SCORE: 1431 Bonus ------- None Cogmind --------- Core Integrity 0/400 Matter 205/300 Energy 100/100 System Corruption 0% Temperature Cool (9) Movement Core (150) Ox2 Location -9/Materials Parts ------- > --- POWER (1) -------- (None) > --- PROPULSION (2) --- (None) > --- UTILITY (4) ------ Small Storage Unit > --- WEAPON (2) ------- Improved Medium Laser > --- INVENTORY (8) ---- High-capacity Matter Pod (4) Faulty Improved Assault Rifle Peak State ------------ > --- POWER ------------ Ion Engine > --- PROPULSION ------- Aluminum Leg > --- UTILITY ---------- Heat Sink Small Storage Unit > --- WEAPON ----------- Improved Medium Laser Grenade Launcher > --- INVENTORY -------- High-capacity Matter Pod Improved Assault Rifle [Rating: 8] Favorites ----------- Power Ion Engine Engine Ion Engine Propulsion Aluminum Leg Leg Aluminum Leg Wheel Wheel Utility Small Storage Unit Device Heat Sink Storage Small Storage Unit Weapon Assault Rifle Energy Gun Small Laser Ballistic Gun Assault Rifle Launcher Grenade Launcher Build | -11 -10 -9 ------- Run | Scr Mat Mat Slots Evolved 2 | . . 2 Power . | . . . Propulsion . | . . . Utility 2 | . . 2 Weapon . | . . . Parts Attached 16 | 7 4 5 Power 3 | 1 1 1 Engine 3 | 1 1 1 Core . | . . . Reactor . | . . . Propulsion 4 | 3 1 . Treads . | . . . Leg 3 | 2 1 . Wheel 1 | 1 . . Hover . | . . . Flight . | . . . Utility 3 | 1 1 1 Device 2 | . 1 1 Storage 1 | 1 . . Processor . | . . . Hackware . | . . . Protection . | . . . Artifact . | . . . Weapon 6 | 2 1 3 Energy Gun 2 | . 1 1 Energy Cannon . | . . . Ballistic Gun 3 | 2 . 1 Ballistic Cannon . | . . . Launcher 1 | . . 1 Special Weapon . | . . . Impact Weapon . | . . . Slashing Weapon . | . . . Piercing Weapon . | . . . Special Melee Weapon . | . . . Unidentified Prototypes 2 | . . 2 Parts Lost 12 | . 5 7 Power 3 | . 1 2 Propulsion 3 | . 1 2 Utility 2 | . 1 1 Weapon 4 | . 2 2 Highest Loss Streak 4 | . 3 4 To Critical Strikes . | . . . Average Slot Usage (%) 64 | . 77 48 Engine 8 | . 13 2 Leg 17 | . 21 12 Device 5 | . 4 6 Storage 12 | . 14 11 Energy Gun 8 | . 7 9 Ballistic Gun 8 | . 15 . Launcher 3 | . . 6 Naked Turns . | . . . Heaviest Build 17 | 14 15 17 Greatest Support 20 | 20 20 20 Greatest Overweight (x) 4 | 1 1 4 Average Overweight (x) . | . . . Largest Inventory Capacity 8 | 8 8 8 Average Capacity 7 | 6 8 8 Most Carried 5 | 4 2 5 Average Carried 1 | 2 . 1 Final Capacity 8 | 8 8 8 Final Carried 2 | 1 1 2 Class Distribution -------------------- 100% | Mutant Dominant Class ---------------- Mutant | -10/Materials Mutant | -9/Materials Resources | -11 -10 -9 ----------- Run | Scr Mat Mat Matter Collected 503 | 298 161 44 Remotely . | . . . Salvage Created 431 | 60 244 127 Parts 28 | 1 18 9 Haulers Intercepted . | . . . Recyclers Shooed . | . . . Parts Field Recycled . | . . . Retrieved Matter . | . . . Parts Self-Destructed . | . . . Prevented . | . . . Kills | -11 -10 -9 ------- Run | Scr Mat Mat Combat Hostiles Destroyed 13 | . 8 5 Guns 8 | . 8 . AOE 5 | . . 5 Classes Destroyed 4 | 1 2 1 Recycler 1 | 1 . . Swarmer 3 | . 3 . Grunt 8 | . 5 3 Sentry 2 | . . 2 Best Kill Streak 5 | 1 5 4 Combat Bots Only 5 | . 5 4 Max Kills in Single Turn 2 | 1 1 2 Gunslinging . | . . . Exploded 2 | . . 2 Melee . | . . . Uniques/NPCs Destroyed . | . . . Combat | -11 -10 -9 -------- Run | Scr Mat Mat Damage Taken 1497 | . 616 881 Core 517 | . 106 411 Absorbed by Shields . | . . . Core Remaining (%) 78 | 100 57 . Volleys Fired 62 | 6 40 16 Largest 2 | 2 2 2 Hottest 86 | 40 60 86 Shots Fired 100 | 12 63 25 Gun 90 | 12 63 15 Cannon . | . . . Launcher 10 | . . 10 Special . | . . . Kinetic 63 | 12 51 . Thermal 27 | . 12 15 Explosive 10 | . . 10 Electromagnetic . | . . . Robot Hit Streak 15 | 2 15 9 Robot Miss Streak 4 | 1 4 1 Penetration Max . | . . . Secondary Targets 1 | . 1 . Max Gunslinging Chain 1 | . 1 . Shots Hit Robots 67 | 5 43 19 Core Hits 32 | 2 18 12 Critical Kills . | . . . Critical Parts Destroyed . | . . . Critical Strikes . | . . . Melee Attacks . | . . . Impact . | . . . Slashing . | . . . Piercing . | . . . Sneak Attacks . | . . . Combat Hostiles . | . . . Follow-up Attacks . | . . . Damage Inflicted 1074 | 89 526 459 Guns 761 | 89 524 148 Cannons . | . . . Explosions 311 | . . 311 Melee . | . . . Ramming 2 | . 2 . Kinetic 535 | 89 446 . Thermal 226 | . 78 148 Explosive 311 | . . 311 Electromagnetic . | . . . Impact . | . . . Slashing . | . . . Piercing . | . . . Highest Corruption . | . . . Average Corruption . | . . . Corruption Purged . | . . . Corruption Blocked . | . . . Overload Shots . | . . . Overflow Damage . | . . . Projectiles . | . . . Explosions . | . . . Melee . | . . . Knockbacks . | . . . Impact . | . . . Kinetic . | . . . Secondary . | . . . Self-Inflicted Damage 32 | . . 32 Shots 1 | . . 1 Rammed . | . . . Targets Rammed 1 | . 1 . Kicked 1 | . 1 . Crushed . | . . . Highest Temperature 346 | . 24 346 Average Temperature 92 | . 10 156 Received Heat Transfer 705 | . 249 456 Effects 1 | . . 1 Energy Bleed 1 | . . 1 Siege Activations . | . . . Robots Corrupted . | . . . Combat Hostiles . | . . . Parts Fried . | . . . Impact Corruptions . | . . . Robots Melted . | . . . Combat Hostiles . | . . . Parts Melted . | . . . Heat Transferred 511 | . 175 336 Parts Sabotaged . | . . . Parts Stolen . | . . . Parts Stripped . | . . . Power Chain Reactions . | . . . Missiles Intercepted . | . . . Alert | -11 -10 -9 ------- Run | Scr Mat Mat Peak Influence 355 | 5 156 355 Initial 65 | . 3 65 Average 121 | 2 89 186 Maximum Alert Level 1 | . . 1 Low Security (%) 84 | 100 100 62 Level 1 15 | . . 37 Level 2 . | . . . Level 3 . | . . . Level 4 . | . . . Level 5 . | . . . High Security . | . . . Max Security . | . . . Squads Dispatched 4 | . 2 2 Investigation 1 | . . 1 Extermination . | . . . Reinforcement 3 | . 2 1 Assault . | . . . Garrison . | . . . Intercept . | . . . Searches Triggered . | . . . Construction Impeded . | . . . Haulers Reinforced . | . . . Active Scanning Responses . | . . . Cargo Convoy Interrupts . | . . . Stealth | -11 -10 -9 --------- Run | Scr Mat Mat Distress Signals 1 | . 1 . Communications Jammed . | . . . Distress Signals . | . . . Times Spotted 23 | . 13 10 Peak Tracking Total 10 | . 10 5 Tactical Retreats . | . . . Traps | -11 -10 -9 ------- Run | Scr Mat Mat Traps Triggered . | . . . Indirectly . | . . . Trap Hack Attempts . | . . . Triggered . | . . . Disarmed . | . . . Reprogrammed . | . . . Reused . | . . . Traps Extracted . | . . . Installed . | . . . Triggered . | . . . Machines | -11 -10 -9 ---------- Run | Scr Mat Mat Machines Disabled 1 | . . 1 Max in Single Turn 1 | . . 1 Machines Sabotaged . | . . . Garrisons Compromised . | . . . Overloaded Fab Kills . | . . . Hacking | -11 -10 -9 --------- Run | Scr Mat Mat Machines Accessed 2 | . . 2 Terminals 2 | . . 2 Fabricators . | . . . Repair Stations . | . . . Recycling Units . | . . . Scanalyzers . | . . . Garrison Access . | . . . Total Hacks 8 | . . 8 Successful 3 | . . 3 Failed 5 | . . 5 Catastrophic . | . . . Database Lockouts . | . . . Manual 2 | . . 2 Terminals 8 | . . 8 Fabricators . | . . . Repair Stations . | . . . Recycling Units . | . . . Scanalyzers . | . . . Garrison Access . | . . . Terminal Hacks 2 | . . 2 Branch Access Points 1 | . . 1 Zone Layout 1 | . . 1 Fabricator Hacks . | . . . Repair Station Hacks . | . . . Recycling Unit Hacks . | . . . Scanalyzer . | . . . Garrison Access Hacks . | . . . Unauthorized Hacks 1 | . . 1 Terminals 1 | . . 1 Botnet 1 | . . 1 Fabricators . | . . . Repair Stations . | . . . Recycling Units . | . . . Scanalyzers . | . . . Garrison Access . | . . . Data Cores Recovered . | . . . Used . | . . . Hacking Detections 2 | . . 2 Full Trace Events 2 | . . 2 Feedback Events . | . . . Feedback Blocked . | . . . Robot Schematics Acquired . | . . . Robots Built . | . . . Authchips . | . . . Time . | . . . Total Robot Build Rating . | . . . Part Schematics Acquired . | . . . Parts Built . | . . . Authchips . | . . . Time . | . . . Total Part Build Rating . | . . . Parts Repaired . | . . . Time . | . . . Parts Recycled . | . . . Recycled Matter . | . . . Retrieved Matter . | . . . Retrieved Components . | . . . Parts Scanalyzed . | . . . Part Schematics Acquired . | . . . Parts Damaged . | . . . Bothacking | -11 -10 -9 ------------ Run | Scr Mat Mat Used RIF Installer . | . . . Robots Hacked . | . . . Non-combat . | . . . Combat . | . . . Robot Hacks Applied . | . . . Relay Couplers Released . | . . . Fabnet Peak Effective % . | . . . Robots Rewired . | . . . Allies Hacked . | . . . Hacks Repelled . | . . . Allies | -11 -10 -9 -------- Run | Scr Mat Mat Total Allies . | . . . Largest Group . | . . . Highest-Rated Group . | . . . Highest-Rated Ally . | . . . Total Orders . | . . . Ally Attacks . | . . . Total Damage . | . . . Kills . | . . . Allies Corrupted . | . . . Allies Melted . | . . . Intel | -11 -10 -9 ------- Run | Scr Mat Mat Robot Analysis Total . | . . . Derelict Logs Recovered . | . . . Drone Launches . | . . . Drone Recoveries . | . . . Exploration | -11 -10 -9 ------------- Run | Scr Mat Mat Turns Passed 715 | 74 340 301 Spaces Moved 376 | 38 164 174 Core 11 | 7 . 4 Treads . | . . . Legs 359 | 25 164 170 Wheels 6 | 6 . . Hover . | . . . Flight . | . . . Fastest Speed 50 | 50 120 120 Average Speed 122 | 103 127 122 Slowest Speed 250 | 120 190 250 Overloaded Moves . | . . . Propulsion Burnouts . | . . . Robots Hopped . | . . . Cave-ins Triggered . | . . . Exploration Rate (%) 18 | 4 37 15 Regions Visited 2 Branch Regions . Pre-discovered Areas . | . . . Known Exits Taken . | . . . Unknown Exits Taken 2 | 1 1 . Scrap Searched . | . . . Spaces Dug 13 | . . 13 Terrain Destroyed 48 | . . 48 Melee . | . . . Projectile . | . . . AOE 48 | . . 48 Terrain Rammed . | . . . Walls Destroyed . | . . . Machines Disabled . | . . . Actions | -11 -10 -9 --------- Run | Scr Mat Mat Total 529 | 61 231 237 Wait 54 | . 19 35 Move 374 | 37 163 174 Hop . | . . . Pick Up 19 | 9 4 6 Fast Attach . | . . . Attach 15 | 6 4 5 Detach . | . . . Swap 1 | 1 . . Drop 3 | 2 . 1 Fire 62 | 6 40 16 Melee . | . . . Ram . | . . . Kick 1 | . 1 . Crush . | . . . Escape Stasis . | . . . Rewire . | . . . Trap . | . . . Miscellaneous . | . . . Route ------- -11/Scrapyard -10/Materials -9/Materials (discovered 2 exits: Min x2) History --------- Turn | Location | Event 8 | -11/Scrapyard | Discovered new exit (range 15) 75 | -11/Scrapyard | Entered Materials 265 | -10/Materials | Lost 3 parts (1n1u1w) 314 | -10/Materials | Discovered new exit (range 16) 324 | -10/Materials | Build established: Mutant 415 | -10/Materials | Entered another Materials area 415 | -9/Materials | Evolved 2 slots: Utility x2 533 | -9/Materials | Identified exit to Mines 705 | -9/Materials | Core integrity fell below 50% 711 | -9/Materials | Core integrity fell below 20% 716 | -9/Materials | Destroyed by G-47 Trooper with Particle Gun Last Messages --------------- 00684_ Aluminum Leg destroyed. 00684_ Critical hit (Burn: +37). 00686_ U-05 Engineer builds a Wall. 00688_ O-16 Technician uses terminal to summon reinforcements. 00688_ ALERT: Hostiles spotted, dispatching reinforcements to Terminal M005. 00688_ O-16 Technician locks terminal. 00690_ U-05 Engineer lays Concrete. 00690_ Ion Engine destroyed. 00692_ U-05 Engineer builds a Wall. 00697_ R-06 Scavenger collects Faulty Imp. Assault Rifle. 00698_ U-05 Engineer lays Concrete. 00701_ U-05 Engineer builds a Wall. 00702_ Critical hit (Burn: +37). 00702_ U-05 Engineer lays Concrete. 00706_ U-05 Engineer builds a Wall. 00707_ U-05 Engineer lays Concrete. 00708_ Critical hit (Burn: +37). 00709_ U-05 Engineer lays Concrete. 00709_ U-05 Engineer builds a Wall. 00711_ U-05 Engineer lays Concrete. Map ----- +----------------------------------------------------+ | """ #??????????????????????????????????????????? | | """ =#??????????????????????????????????????????? | | #??????????????????????????????????????????? | | =! #??????????????????????????????????????????? | | = #??????????????????????????????????????????? | | #??????????????????????????????????????????? | | #?????########?????????????????????????????? | | ##+########## #########?????????????????????? | | #?????????????????????? | | = #?????????????????????? | | = ########??????????????? | | ############# ##### # #??????????????? | | ???????????## #?# # " #??????????????? | | ???????????# """" #?# # T #??????????????? | | ???????????## ""S"" #?# ; " #??????????????? | | ???????????## "" "" ### # #??????????????? | | ???????????# # # #??????????????? | | ???????????## """"" # # # ######??????????????? | | ????????????# """"" # ##???????????????????? | | ????????????# """"" # ###??????????????????? | | ????????????# + % #??????????????????? | | ????????????####+##### ##??????????????????? | | ???????????????# #??# # u % ##??????????????????? | | ???????????????# #??## ##;#####??????????????????? | | ???????????????# #####r ##??????????????????? | | ???????????????# ## @ #??????????????????? | | ???????????????#### ## ##??????????????????? | | ??????????????????# ## #???????????????????? | | ?????????????????## ## g #???????????????????? | | ??????????????????# # Ygg #???????????????????? | | ?????????????????## #???????????????????? | | ?????????????????# r "" #???????????????????? | | ?????????????????# u T" #???????????????????? | | ?????????????????# u#o[ "" #???????????????????? | | ?????????????????# # #???????????????????? | | ?????????????????# #########???????????????????? | | ???????????????? ???????????????????????????? | | ??????????????? ???????????????????????????? | | ?????????????? ???????????????????????????? | | ?????????????##### ??????????????????????????? | | ?????????????????# ??????????????????????????? | | ?????????????????# ??????????????????????????? | | ?????????????????# #??????????????????????????? | | ?????????????????+ #??????????????????????????? | | ?????????????????# #??????????????????????????? | | ?????????????????# ???????????????????????????? | | ?????????????????? ???????????????????????????? | | ??????????????????????????>??????????????????????? | | ?????????????????????????????????????????????????? | | ?????????????????????????????????????????????????? | +----------------------------------------------------+ Best States ------------- Heat Dissipation 38 Energy Generation 10 Energy Capacity 250 Matter Stores 300 Matter Capacity 300 Sight Range 16 Terrain Scan Density 10 Evasion (%) 55 Item Schematics ----------------- None Robot Schematics ------------------ None Fabricated ------------ Nothing Alien Tech Used ----------------- None Achievements -------------- None Challenges ------------ None Game ------ Seed MissileIntegratedCannon Manual? 0 Play Time 00:11:25 Cumulative 43.3 hours Start 2022.09.09 @ 20:15:38 End 2022.09.09 @ 20:24:34 Sessions 1 Manual Loads 0 Difficulty Rogue Special Mode None Game No. 103 Rogue 103 Adventurer 0 Explorer 0 Win Type - Total 0 Types 0/0/0/0/0/0/0/0/0 Lore% 28 Gallery% 25 Achievement% 23 Wizard Run 0 Options --------- ASCII 0 Keyboard 0 Movement Numpad Keybinds 0 Fullscreen 1 Font 12/Smallcaps Map View 83x54 Tactical HUD 1 Map Filters NONE Filters NONE Steam 1 RUN: 8b703700-0ef4-40f2-8a6b-e1ed88a09cd2